[Event "Titled Tuesday Blitz June 27 Late 2023"]
[White "Romero Ruscalleda, Josep"]
[Black "BrandonJiang123456"]
[WhiteFideId "2231859"]
[WhiteElo "2380"]
[BlackElo "2212"]
[Result "0-1"]
[Round "8"]
[TimeControl "180+2"]
[Date "2023.06.27"]
[WhiteClock "0:00:00"]
[BlackClock "0:00:42"]
[Board "107"]

1. e4 {[%clk 0:02:56]}  e5 {[%clk 0:03:00]} 2. Nf3 {[%clk 0:02:56]}  Nc6 {[%clk 0:03:00]} 3. Bc4 {[%clk 0:02:56]}  Bc5 {[%clk 0:03:00]} 4. c3 {[%clk 0:02:55]}  Bb6 {[%clk 0:03:00]} 5. O-O {[%clk 0:02:53]}  Nf6 {[%clk 0:02:58]} 6. Re1 {[%clk 0:02:53]}  h6 {[%clk 0:02:57]} 7. d4 {[%clk 0:02:52]}  Qe7 {[%clk 0:02:57]} 8. a4 {[%clk 0:02:48]}  a6 {[%clk 0:02:56]} 9. a5 {[%clk 0:02:42]}  Ba7 {[%clk 0:02:55]} 10. b3 {[%clk 0:02:35]}  d6 {[%clk 0:02:53]} 11. dxe5 {[%clk 0:02:21]}  Nxe5 {[%clk 0:02:51]} 12. Nxe5 {[%clk 0:02:19]}  Qxe5 {[%clk 0:02:51]} 13. Be3 {[%clk 0:02:14]}  Ng4 {[%clk 0:02:49]} 14. Bxa7 {[%clk 0:01:30]}  Qxh2+ {[%clk 0:02:41]} 15. Kf1 {[%clk 0:01:30]}  Rxa7 {[%clk 0:02:42]} 16. Qd4 {[%clk 0:01:30]}  Ra8 {[%clk 0:02:24]} 17. Qxg7 {[%clk 0:01:30]}  Rf8 {[%clk 0:02:25]} 18. Nd2 {[%clk 0:01:07]}  Qh1+ {[%clk 0:02:24]} 19. Ke2 {[%clk 0:01:07]}  Qxg2 {[%clk 0:02:24]} 20. Rf1 {[%clk 0:01:06]}  Be6 {[%clk 0:02:06]} 21. Bd3 {[%clk 0:00:51]}  Kd7 {[%clk 0:01:59]} 22. Nf3 {[%clk 0:00:44]}  Rg8 {[%clk 0:01:56]} 23. Qd4 {[%clk 0:00:42]}  Nh2 {[%clk 0:01:44]} 24. Ne5+ {[%clk 0:00:33]}  Ke7 {[%clk 0:01:35]} 25. Rg1 {[%clk 0:00:30]}  Qh3 {[%clk 0:01:34]} 26. Qb4 {[%clk 0:00:22]}  Qh5+ {[%clk 0:01:32]} 27. f3 {[%clk 0:00:20]}  Qxe5 {[%clk 0:01:30]} 28. Qxb7 {[%clk 0:00:19]}  Qc5 {[%clk 0:01:17]} 29. b4 {[%clk 0:00:11]}  Qh5 {[%clk 0:00:54]} 30. Qxc7+ {[%clk 0:00:10]}  Bd7 {[%clk 0:00:53]} 31. Qb6 {[%clk 0:00:07]}  Qxf3+ {[%clk 0:00:52]} 32. Kd2 {[%clk 0:00:07]}  Qf4+ {[%clk 0:00:52]} 33. Kc2 {[%clk 0:00:06]}  Nf3 {[%clk 0:00:50]} 34. Rgf1 {[%clk 0:00:05]}  Rg2+ {[%clk 0:00:49]} 35. Kb3 {[%clk 0:00:05]}  Nd2+ {[%clk 0:00:45]} 36. Ka3 {[%clk 0:00:05]}  Nxf1 {[%clk 0:00:45]} 37. Rxf1 {[%clk 0:00:00]}  Qd2 {[%clk 0:00:42]} 0-1


[Site "https://www.chess.com"]

[Event "Titled Tuesday Blitz June 27 Late 2023"]
[White "Vaglio Munoz, Jaime"]
[Black "Haitin, Ilja"]
[WhiteFideId "6500145"]
[BlackFideId "4501764"]
[WhiteElo "2282"]
[BlackElo "2370"]
[Result "0-1"]
[Round "8"]
[TimeControl "180+2"]
[Date "2023.06.27"]
[WhiteClock "0:00:41"]
[BlackClock "0:00:06"]
[Board "113"]

1. Nf3 {[%clk 0:03:00]}  Nf6 {[%clk 0:02:56]} 2. c4 {[%clk 0:03:00]}  e6 {[%clk 0:02:56]} 3. b3 {[%clk 0:03:00]}  c5 {[%clk 0:02:50]} 4. Bb2 {[%clk 0:03:00]}  Nc6 {[%clk 0:02:49]} 5. g3 {[%clk 0:02:59]}  d6 {[%clk 0:02:43]} 6. Bg2 {[%clk 0:02:59]}  Be7 {[%clk 0:02:43]} 7. O-O {[%clk 0:02:59]}  O-O {[%clk 0:02:43]} 8. a3 {[%clk 0:02:58]}  Bd7 {[%clk 0:02:42]} 9. d3 {[%clk 0:02:58]}  Qc7 {[%clk 0:02:42]} 10. e4 {[%clk 0:02:58]}  e5 {[%clk 0:02:40]} 11. Nc3 {[%clk 0:02:57]}  Nd4 {[%clk 0:02:39]} 12. Nxd4 {[%clk 0:02:57]}  cxd4 {[%clk 0:02:39]} 13. Ne2 {[%clk 0:02:56]}  a5 {[%clk 0:01:56]} 14. h3 {[%clk 0:02:55]}  b5 {[%clk 0:01:54]} 15. f4 {[%clk 0:02:53]}  a4 {[%clk 0:01:51]} 16. Rc1 {[%clk 0:02:48]}  axb3 {[%clk 0:01:50]} 17. Qxb3 {[%clk 0:02:44]}  bxc4 {[%clk 0:01:47]} 18. Rxc4 {[%clk 0:02:43]}  Qb8 {[%clk 0:01:45]} 19. Qc2 {[%clk 0:02:37]}  Be6 {[%clk 0:01:42]} 20. Rb4 {[%clk 0:02:22]}  Qc8 {[%clk 0:01:41]} 21. f5 {[%clk 0:02:22]}  Qxc2 {[%clk 0:01:40]} 22. fxe6 {[%clk 0:02:21]}  Qxe2 {[%clk 0:01:37]} 23. Rf2 {[%clk 0:02:20]}  Qe3 {[%clk 0:01:33]} 24. Rc4 {[%clk 0:02:13]}  fxe6 {[%clk 0:01:31]} 25. Bc1 {[%clk 0:02:12]}  Qxd3 {[%clk 0:01:30]} 26. Bf1 {[%clk 0:02:11]}  Qxg3+ {[%clk 0:01:30]} 27. Rg2 {[%clk 0:02:11]}  Qxh3 {[%clk 0:01:20]} 28. Rc7 {[%clk 0:02:10]}  Rf7 {[%clk 0:01:17]} 29. Bc4 {[%clk 0:01:48]}  Qc3 {[%clk 0:01:08]} 30. Bd2 {[%clk 0:01:37]}  Qa1+ {[%clk 0:01:02]} 31. Kh2 {[%clk 0:01:36]}  Nxe4 {[%clk 0:00:45]} 32. Bxe6 {[%clk 0:01:32]}  Nxd2 {[%clk 0:00:42]} 33. Rxe7 {[%clk 0:01:31]}  Nf3+ {[%clk 0:00:37]} 34. Kg3 {[%clk 0:01:30]}  Qe1+ {[%clk 0:00:36]} 35. Rf2 {[%clk 0:01:26]}  Rf8 {[%clk 0:00:28]} 36. a4 {[%clk 0:01:13]}  h5 {[%clk 0:00:20]} 37. Rxf7 {[%clk 0:01:02]}  Rxf7 {[%clk 0:00:19]} 38. Bxf7+ {[%clk 0:01:03]}  Kxf7 {[%clk 0:00:18]} 39. Kxf3 {[%clk 0:01:04]}  Ke6 {[%clk 0:00:15]} 40. Ra2 {[%clk 0:00:59]}  g5 {[%clk 0:00:11]} 41. Kg2 {[%clk 0:00:53]}  Qa5 {[%clk 0:00:07]} 42. Kf3 {[%clk 0:00:50]}  Kd5 {[%clk 0:00:07]} 43. Rh2 {[%clk 0:00:46]}  Qxa4 {[%clk 0:00:06]} 44. Rb2 {[%clk 0:00:42]}  Qd1+ {[%clk 0:00:05]} 45. Kg2 {[%clk 0:00:42]}  Qg4+ {[%clk 0:00:04]} 46. Kf2 {[%clk 0:00:42]}  h4 {[%clk 0:00:05]} 47. Rb5+ {[%clk 0:00:40]}  Ke4 {[%clk 0:00:05]} 48. Rb3 {[%clk 0:00:39]}  Qg3+ {[%clk 0:00:05]} 49. Rxg3 {[%clk 0:00:39]}  hxg3+ {[%clk 0:00:05]} 50. Kxg3 {[%clk 0:00:40]}  Ke3 {[%clk 0:00:06]} 51. Kg2 {[%clk 0:00:40]}  d3 {[%clk 0:00:06]} 52. Kf1 {[%clk 0:00:40]}  d2 {[%clk 0:00:06]} 53. Kg2 {[%clk 0:00:41]}  d1=Q {[%clk 0:00:06]} 54. Kh3 {[%clk 0:00:41]}  Qf3+ {[%clk 0:00:05]} 55. Kh2 {[%clk 0:00:41]}  Qg4 {[%clk 0:00:05]} 56. Kh1 {[%clk 0:00:41]}  Kf2 {[%clk 0:00:05]} 57. Kh2 {[%clk 0:00:41]}  Qh5# {[%clk 0:00:06]} 0-1


[Site "https://www.chess.com"]

[Event "Titled Tuesday Blitz June 27 Late 2023"]
[White "Campos, Maria Jose"]
[Black "Sarkar, Justin"]
[WhiteFideId "146803"]
[BlackFideId "2010011"]
[WhiteElo "2368"]
[BlackElo "2280"]
[Result "1-0"]
[Round "8"]
[TimeControl "180+2"]
[Date "2023.06.27"]
[WhiteClock "0:01:21"]
[BlackClock "0:00:00"]
[Board "114"]

1. c4 {[%clk 0:02:54]}  Nf6 {[%clk 0:02:51]} 2. g3 {[%clk 0:02:50]}  c6 {[%clk 0:02:48]} 3. Bg2 {[%clk 0:02:49]}  d5 {[%clk 0:02:46]} 4. Nf3 {[%clk 0:02:50]}  dxc4 {[%clk 0:02:37]} 5. O-O {[%clk 0:02:45]}  Bf5 {[%clk 0:02:24]} 6. Na3 {[%clk 0:02:36]}  Nbd7 {[%clk 0:02:08]} 7. Nxc4 {[%clk 0:02:35]}  Nb6 {[%clk 0:02:05]} 8. b3 {[%clk 0:02:33]}  e6 {[%clk 0:02:01]} 9. Bb2 {[%clk 0:02:31]}  Be7 {[%clk 0:01:59]} 10. d3 {[%clk 0:02:31]}  O-O {[%clk 0:01:57]} 11. Rc1 {[%clk 0:02:29]}  a5 {[%clk 0:01:49]} 12. a3 {[%clk 0:02:28]}  a4 {[%clk 0:01:41]} 13. b4 {[%clk 0:02:27]}  Nxc4 {[%clk 0:01:30]} 14. Rxc4 {[%clk 0:02:27]}  h6 {[%clk 0:01:12]} 15. Qa1 {[%clk 0:02:19]}  Re8 {[%clk 0:01:06]} 16. Rfc1 {[%clk 0:02:19]}  Bf8 {[%clk 0:00:59]} 17. Bd4 {[%clk 0:02:08]}  Nd7 {[%clk 0:00:55]} 18. Qb2 {[%clk 0:02:05]}  Nb6 {[%clk 0:00:44]} 19. R4c2 {[%clk 0:02:04]}  Bh7 {[%clk 0:00:41]} 20. b5 {[%clk 0:01:58]}  cxb5 {[%clk 0:00:25]} 21. Qxb5 {[%clk 0:01:57]}  Nd5 {[%clk 0:00:24]} 22. Ne5 {[%clk 0:01:42]}  Bxa3 {[%clk 0:00:16]} 23. Ra1 {[%clk 0:01:34]}  Be7 {[%clk 0:00:10]} 24. Rxa4 {[%clk 0:01:27]}  Nc7 {[%clk 0:00:04]} 25. Rxa8 {[%clk 0:01:24]}  Nxb5 {[%clk 0:00:03]} 26. Rxd8 {[%clk 0:01:24]}  Rxd8 {[%clk 0:00:00]} 27. Bb6 {[%clk 0:01:21]} 1-0


[Site "https://www.chess.com"]

[Event "Titled Tuesday Blitz June 27 Late 2023"]
[White "Cluke86"]
[Black "Wendt, Jan-Dietrich"]
[BlackFideId "4623797"]
[WhiteElo "2258"]
[BlackElo "2354"]
[Result "1-0"]
[Round "8"]
[TimeControl "180+2"]
[Date "2023.06.27"]
[WhiteClock "0:00:21"]
[BlackClock "0:00:00"]
[Board "115"]

1. e4 {[%clk 0:02:59]}  c5 {[%clk 0:02:27]} 2. Nc3 {[%clk 0:02:57]}  e6 {[%clk 0:02:26]} 3. f4 {[%clk 0:02:55]}  d5 {[%clk 0:02:26]} 4. d3 {[%clk 0:02:52]}  Nc6 {[%clk 0:02:25]} 5. Nf3 {[%clk 0:02:51]}  Nf6 {[%clk 0:02:23]} 6. Be2 {[%clk 0:02:50]}  Be7 {[%clk 0:02:21]} 7. O-O {[%clk 0:02:50]}  b6 {[%clk 0:02:20]} 8. Qe1 {[%clk 0:02:49]}  Bb7 {[%clk 0:02:17]} 9. Bd1 {[%clk 0:02:46]}  O-O {[%clk 0:02:14]} 10. e5 {[%clk 0:02:43]}  Nd7 {[%clk 0:02:12]} 11. Ne2 {[%clk 0:02:42]}  f6 {[%clk 0:02:07]} 12. exf6 {[%clk 0:02:38]}  Bxf6 {[%clk 0:02:08]} 13. c3 {[%clk 0:02:36]}  Qc7 {[%clk 0:02:01]} 14. Ng3 {[%clk 0:02:33]}  Rae8 {[%clk 0:02:00]} 15. Nh5 {[%clk 0:02:31]}  e5 {[%clk 0:01:49]} 16. Nxf6+ {[%clk 0:02:22]}  Nxf6 {[%clk 0:01:48]} 17. fxe5 {[%clk 0:02:13]}  Nxe5 {[%clk 0:01:47]} 18. Nxe5 {[%clk 0:02:09]}  Qxe5 {[%clk 0:01:41]} 19. Qxe5 {[%clk 0:02:06]}  Rxe5 {[%clk 0:01:42]} 20. Bf4 {[%clk 0:02:03]}  Ree8 {[%clk 0:01:34]} 21. Bf3 {[%clk 0:01:54]}  Kf7 {[%clk 0:01:09]} 22. Bd6 {[%clk 0:01:52]}  Rh8 {[%clk 0:01:07]} 23. Bh5+ {[%clk 0:01:45]}  g6 {[%clk 0:01:05]} 24. Bf3 {[%clk 0:01:42]}  Re6 {[%clk 0:01:02]} 25. Bf4 {[%clk 0:01:38]}  Rhe8 {[%clk 0:00:57]} 26. c4 {[%clk 0:01:38]}  Kg7 {[%clk 0:00:53]} 27. Bg5 {[%clk 0:01:36]}  h6 {[%clk 0:00:45]} 28. Bxf6+ {[%clk 0:01:34]}  Rxf6 {[%clk 0:00:45]} 29. Bxd5 {[%clk 0:01:32]}  Bxd5 {[%clk 0:00:42]} 30. cxd5 {[%clk 0:01:29]}  Rd6 {[%clk 0:00:38]} 31. Rae1 {[%clk 0:01:23]}  Rxe1 {[%clk 0:00:31]} 32. Rxe1 {[%clk 0:01:24]}  Kf6 {[%clk 0:00:31]} 33. Rf1+ {[%clk 0:01:02]}  Ke5 {[%clk 0:00:23]} 34. Rf7 {[%clk 0:01:03]}  Rxd5 {[%clk 0:00:22]} 35. Rxa7 {[%clk 0:00:58]}  Rxd3 {[%clk 0:00:22]} 36. Rg7 {[%clk 0:00:55]}  Kf6 {[%clk 0:00:12]} 37. Rh7 {[%clk 0:00:53]}  Rd1+ {[%clk 0:00:10]} 38. Kf2 {[%clk 0:00:52]}  Rd2+ {[%clk 0:00:10]} 39. Kf3 {[%clk 0:00:53]}  Rxb2 {[%clk 0:00:11]} 40. Rb7 {[%clk 0:00:46]}  c4 {[%clk 0:00:10]} 41. a4 {[%clk 0:00:46]}  c3 {[%clk 0:00:09]} 42. Rc7 {[%clk 0:00:45]}  c2 {[%clk 0:00:07]} 43. Kf4 {[%clk 0:00:38]}  Rb4+ {[%clk 0:00:05]} 44. Ke3 {[%clk 0:00:37]}  Rxa4 {[%clk 0:00:05]} 45. Rxc2 {[%clk 0:00:36]}  Rb4 {[%clk 0:00:04]} 46. g3 {[%clk 0:00:30]}  h5 {[%clk 0:00:04]} 47. h4 {[%clk 0:00:30]}  b5 {[%clk 0:00:04]} 48. Rc5 {[%clk 0:00:29]}  Rb3+ {[%clk 0:00:03]} 49. Kf4 {[%clk 0:00:29]}  Rb4+ {[%clk 0:00:04]} 50. Kf3 {[%clk 0:00:29]}  Rb3+ {[%clk 0:00:04]} 51. Kf4 {[%clk 0:00:29]}  b4 {[%clk 0:00:05]} 52. Rc6+ {[%clk 0:00:28]}  Kf7 {[%clk 0:00:05]} 53. Rb6 {[%clk 0:00:29]}  Kg7 {[%clk 0:00:02]} 54. Rc6 {[%clk 0:00:26]}  Rc3 {[%clk 0:00:02]} 55. Rb6 {[%clk 0:00:26]}  b3 {[%clk 0:00:03]} 56. Ra6 {[%clk 0:00:22]}  Kf7 {[%clk 0:00:03]} 57. Rb6 {[%clk 0:00:22]}  Ke7 {[%clk 0:00:03]} 58. Rxg6 {[%clk 0:00:21]}  b2 {[%clk 0:00:01]} 59. Rb6 {[%clk 0:00:21]}  Rc2 {[%clk 0:00:00]} 60. Kg5 {[%clk 0:00:21]} 1-0


[Site "https://www.chess.com"]

[Event "Titled Tuesday Blitz June 27 Late 2023"]
[White "micke12a"]
[Black "Li, Eric"]
[BlackFideId "30939941"]
[WhiteElo "2345"]
[BlackElo "2255"]
[Result "1-0"]
[Round "8"]
[TimeControl "180+2"]
[Date "2023.06.27"]
[WhiteClock "0:00:43"]
[BlackClock "0:00:00"]
[Board "117"]

1. e4 {[%clk 0:02:52]}  c5 {[%clk 0:02:30]} 2. Nf3 {[%clk 0:02:51]}  Nc6 {[%clk 0:02:29]} 3. d4 {[%clk 0:02:50]}  cxd4 {[%clk 0:02:30]} 4. Nxd4 {[%clk 0:02:50]}  g6 {[%clk 0:02:29]} 5. c4 {[%clk 0:02:49]}  Bg7 {[%clk 0:02:28]} 6. Be3 {[%clk 0:02:50]}  Qb6 {[%clk 0:02:28]} 7. Nb3 {[%clk 0:02:39]}  Qd8 {[%clk 0:02:04]} 8. Nc3 {[%clk 0:02:34]}  Bxc3+ {[%clk 0:01:20]} 9. bxc3 {[%clk 0:02:33]}  Nf6 {[%clk 0:01:21]} 10. f3 {[%clk 0:02:33]}  d6 {[%clk 0:00:56]} 11. Qd2 {[%clk 0:02:33]}  O-O {[%clk 0:00:56]} 12. Be2 {[%clk 0:02:33]}  Be6 {[%clk 0:00:56]} 13. O-O {[%clk 0:02:32]}  Ne5 {[%clk 0:00:50]} 14. c5 {[%clk 0:02:29]}  Nc4 {[%clk 0:00:24]} 15. Bxc4 {[%clk 0:02:28]}  Bxc4 {[%clk 0:00:25]} 16. Rfd1 {[%clk 0:02:28]}  dxc5 {[%clk 0:00:23]} 17. Bxc5 {[%clk 0:02:23]}  Qc7 {[%clk 0:00:07]} 18. Bd4 {[%clk 0:02:17]}  Rfd8 {[%clk 0:00:07]} 19. Qg5 {[%clk 0:02:17]}  Ne8 {[%clk 0:00:06]} 20. h4 {[%clk 0:02:11]}  f6 {[%clk 0:00:06]} 21. Qh6 {[%clk 0:02:10]}  e5 {[%clk 0:00:06]} 22. Bf2 {[%clk 0:02:04]}  Ng7 {[%clk 0:00:06]} 23. Qe3 {[%clk 0:01:59]}  b6 {[%clk 0:00:03]} 24. Nd2 {[%clk 0:01:58]}  Rd3 {[%clk 0:00:03]} 25. Qe1 {[%clk 0:01:55]}  Rad8 {[%clk 0:00:03]} 26. Nb3 {[%clk 0:01:41]}  Rxd1 {[%clk 0:00:01]} 27. Rxd1 {[%clk 0:01:41]}  Ne6 {[%clk 0:00:02]} 28. Be3 {[%clk 0:01:34]}  Nf4 {[%clk 0:00:01]} 29. Bxf4 {[%clk 0:01:34]}  exf4 {[%clk 0:00:02]} 30. Rxd8+ {[%clk 0:01:31]}  Qxd8 {[%clk 0:00:03]} 31. Nd4 {[%clk 0:01:31]}  Bxa2 {[%clk 0:00:01]} 32. Qa1 {[%clk 0:01:32]}  Bf7 {[%clk 0:00:02]} 33. Qxa7 {[%clk 0:01:32]}  Qd6 {[%clk 0:00:03]} 34. Qa8+ {[%clk 0:01:29]}  Kg7 {[%clk 0:00:03]} 35. Qc6 {[%clk 0:01:27]}  Qc5 {[%clk 0:00:03]} 36. Qxc5 {[%clk 0:00:59]}  bxc5 {[%clk 0:00:04]} 37. Ne2 {[%clk 0:01:00]}  g5 {[%clk 0:00:03]} 38. Kf2 {[%clk 0:00:46]}  h6 {[%clk 0:00:02]} 39. g3 {[%clk 0:00:45]}  fxg3+ {[%clk 0:00:02]} 40. Kxg3 {[%clk 0:00:45]}  Bc4 {[%clk 0:00:00]} 41. Ng1 {[%clk 0:00:43]} 1-0


[Site "https://www.chess.com"]

[Event "Titled Tuesday Blitz June 27 Late 2023"]
[White "Kujawski, Adam"]
[Black "Quirke, Jeffrey"]
[WhiteFideId "1100920"]
[BlackFideId "2013029"]
[WhiteElo "2340"]
[BlackElo "2242"]
[Result "1/2-1/2"]
[Round "8"]
[TimeControl "180+2"]
[Date "2023.06.27"]
[WhiteClock "0:01:43"]
[BlackClock "0:01:08"]
[Board "118"]

1. e4 {[%clk 0:03:00]}  e6 {[%clk 0:02:56]} 2. d4 {[%clk 0:03:00]}  d5 {[%clk 0:02:56]} 3. Nc3 {[%clk 0:03:00]}  dxe4 {[%clk 0:02:55]} 4. Nxe4 {[%clk 0:03:00]}  Bd7 {[%clk 0:02:56]} 5. Nf3 {[%clk 0:03:00]}  Bc6 {[%clk 0:02:56]} 6. Nc3 {[%clk 0:02:56]}  Nf6 {[%clk 0:02:51]} 7. Be2 {[%clk 0:02:54]}  Nbd7 {[%clk 0:02:49]} 8. O-O {[%clk 0:02:53]}  Bxf3 {[%clk 0:02:49]} 9. Bxf3 {[%clk 0:02:53]}  c6 {[%clk 0:02:50]} 10. Re1 {[%clk 0:02:50]}  Be7 {[%clk 0:02:49]} 11. b3 {[%clk 0:02:49]}  O-O {[%clk 0:02:49]} 12. Bb2 {[%clk 0:02:49]}  Qc7 {[%clk 0:02:42]} 13. a3 {[%clk 0:02:48]}  a5 {[%clk 0:02:40]} 14. a4 {[%clk 0:02:44]}  Rfe8 {[%clk 0:02:39]} 15. g3 {[%clk 0:02:43]}  Bb4 {[%clk 0:02:23]} 16. Re2 {[%clk 0:02:26]}  h6 {[%clk 0:02:21]} 17. Bg2 {[%clk 0:02:22]}  Rad8 {[%clk 0:02:20]} 18. Qf1 {[%clk 0:02:19]}  Nb6 {[%clk 0:02:16]} 19. Rd1 {[%clk 0:02:18]}  Nbd5 {[%clk 0:02:15]} 20. Ne4 {[%clk 0:02:10]}  Nxe4 {[%clk 0:02:14]} 21. Bxe4 {[%clk 0:02:10]}  Nc3 {[%clk 0:02:02]} 22. Bxc3 {[%clk 0:02:10]}  Bxc3 {[%clk 0:02:02]} 23. Bg2 {[%clk 0:01:54]}  Bxd4 {[%clk 0:01:59]} 24. Red2 {[%clk 0:01:51]}  Bf6 {[%clk 0:01:58]} 25. Qc4 {[%clk 0:01:47]}  Rxd2 {[%clk 0:01:52]} 26. Rxd2 {[%clk 0:01:48]}  Rd8 {[%clk 0:01:53]} 27. Rxd8+ {[%clk 0:01:47]}  Qxd8 {[%clk 0:01:54]} 28. h4 {[%clk 0:01:47]}  Qd4 {[%clk 0:01:49]} 29. Qxd4 {[%clk 0:01:46]}  Bxd4 {[%clk 0:01:49]} 30. Kf1 {[%clk 0:01:47]}  Kf8 {[%clk 0:01:48]} 31. Ke2 {[%clk 0:01:47]}  Ke7 {[%clk 0:01:49]} 32. h5 {[%clk 0:01:47]}  Kd6 {[%clk 0:01:45]} 33. g4 {[%clk 0:01:47]}  e5 {[%clk 0:01:31]} 34. Be4 {[%clk 0:01:46]}  b5 {[%clk 0:01:23]} 35. f3 {[%clk 0:01:43]}  bxa4 {[%clk 0:01:21]} 36. bxa4 {[%clk 0:01:43]}  Bb6 {[%clk 0:01:14]} 37. Kd3 {[%clk 0:01:43]}  f6 {[%clk 0:01:08]} 38. Kc4 {[%clk 0:01:43]} 1/2-1/2


[Site "https://www.chess.com"]

[Event "Titled Tuesday Blitz June 27 Late 2023"]
[White "Broca Jimenez, Fernando"]
[Black "The_Straightforward_Rook"]
[WhiteFideId "5104742"]
[WhiteElo "2233"]
[BlackElo "2335"]
[Result "0-1"]
[Round "8"]
[TimeControl "180+2"]
[Date "2023.06.27"]
[WhiteClock "0:01:55"]
[BlackClock "0:01:59"]
[Board "119"]

1. e4 {[%clk 0:03:00]}  c5 {[%clk 0:02:59]} 2. b3 {[%clk 0:02:57]}  e5 {[%clk 0:02:56]} 3. Bb2 {[%clk 0:02:56]}  Nc6 {[%clk 0:02:54]} 4. Nf3 {[%clk 0:02:56]}  d6 {[%clk 0:02:52]} 5. Be2 {[%clk 0:02:54]}  Nf6 {[%clk 0:02:49]} 6. O-O {[%clk 0:02:54]}  Nxe4 {[%clk 0:02:47]} 7. c3 {[%clk 0:02:48]}  Be7 {[%clk 0:02:44]} 8. d4 {[%clk 0:02:48]}  exd4 {[%clk 0:02:42]} 9. cxd4 {[%clk 0:02:49]}  O-O {[%clk 0:02:40]} 10. Bd3 {[%clk 0:02:42]}  Nf6 {[%clk 0:02:37]} 11. Nbd2 {[%clk 0:02:42]}  Bg4 {[%clk 0:02:36]} 12. h3 {[%clk 0:02:37]}  Bh5 {[%clk 0:02:35]} 13. Qc2 {[%clk 0:02:31]}  Nb4 {[%clk 0:02:33]} 14. Qc4 {[%clk 0:02:30]}  d5 {[%clk 0:02:26]} 15. Qb5 {[%clk 0:02:30]}  a6 {[%clk 0:02:25]} 16. Qxb7 {[%clk 0:02:29]}  Nxd3 {[%clk 0:02:24]} 17. Ba3 {[%clk 0:02:28]}  Re8 {[%clk 0:02:13]} 18. dxc5 {[%clk 0:02:18]}  Nxc5 {[%clk 0:02:11]} 19. Bxc5 {[%clk 0:02:11]}  Bxc5 {[%clk 0:02:12]} 20. b4 {[%clk 0:02:04]}  Qb6 {[%clk 0:02:05]} 21. Qxb6 {[%clk 0:02:02]}  Bxb6 {[%clk 0:02:06]} 22. Nb3 {[%clk 0:02:01]}  Bxf3 {[%clk 0:02:05]} 23. gxf3 {[%clk 0:02:02]}  d4 {[%clk 0:02:01]} 24. Rad1 {[%clk 0:02:02]}  Rad8 {[%clk 0:02:00]} 25. Rxd4 {[%clk 0:01:55]}  Bxd4 {[%clk 0:01:59]} 0-1


[Site "https://www.chess.com"]

[Event "Titled Tuesday Blitz June 27 Late 2023"]
[White "Oliveira, Tiago Batista"]
[Black "Roman, Rodrigo"]
[WhiteFideId "2108291"]
[BlackFideId "3701220"]
[WhiteElo "2172"]
[BlackElo "2328"]
[Result "0-1"]
[Round "8"]
[TimeControl "180+2"]
[Date "2023.06.27"]
[WhiteClock "0:00:00"]
[BlackClock "0:00:13"]
[Board "120"]

1. d4 {[%clk 0:03:00]}  Nf6 {[%clk 0:02:58]} 2. c4 {[%clk 0:03:00]}  e6 {[%clk 0:02:58]} 3. Nf3 {[%clk 0:02:59]}  d5 {[%clk 0:02:58]} 4. g3 {[%clk 0:02:59]}  Bb4+ {[%clk 0:02:57]} 5. Bd2 {[%clk 0:02:58]}  Be7 {[%clk 0:02:57]} 6. Bg2 {[%clk 0:02:59]}  O-O {[%clk 0:02:56]} 7. O-O {[%clk 0:02:58]}  Nbd7 {[%clk 0:02:56]} 8. Bf4 {[%clk 0:02:57]}  c6 {[%clk 0:02:54]} 9. Nbd2 {[%clk 0:02:57]}  b6 {[%clk 0:02:46]} 10. Qc2 {[%clk 0:02:55]}  Bb7 {[%clk 0:02:46]} 11. Rfd1 {[%clk 0:02:55]}  Nh5 {[%clk 0:02:44]} 12. e4 {[%clk 0:02:48]}  Nxf4 {[%clk 0:02:37]} 13. gxf4 {[%clk 0:02:48]}  dxe4 {[%clk 0:02:26]} 14. Nxe4 {[%clk 0:02:47]}  Qc7 {[%clk 0:02:26]} 15. Neg5 {[%clk 0:02:30]}  g6 {[%clk 0:02:25]} 16. Qd2 {[%clk 0:01:40]}  Rad8 {[%clk 0:02:06]} 17. Qe3 {[%clk 0:01:33]}  Bf6 {[%clk 0:02:02]} 18. h4 {[%clk 0:01:32]}  c5 {[%clk 0:01:53]} 19. Ne5 {[%clk 0:01:31]}  Bxg2 {[%clk 0:01:49]} 20. Kxg2 {[%clk 0:01:31]}  cxd4 {[%clk 0:01:47]} 21. Rxd4 {[%clk 0:01:23]}  Nxe5 {[%clk 0:01:43]} 22. fxe5 {[%clk 0:01:21]}  Qxe5 {[%clk 0:01:37]} 23. Rxd8 {[%clk 0:01:12]}  Rxd8 {[%clk 0:01:35]} 24. Qxe5 {[%clk 0:00:56]}  Bxe5 {[%clk 0:01:35]} 25. Rb1 {[%clk 0:00:45]}  Kg7 {[%clk 0:01:06]} 26. Nf3 {[%clk 0:00:40]}  Bf6 {[%clk 0:01:06]} 27. b4 {[%clk 0:00:37]}  Rc8 {[%clk 0:01:04]} 28. Rc1 {[%clk 0:00:34]}  a6 {[%clk 0:00:57]} 29. c5 {[%clk 0:00:32]}  bxc5 {[%clk 0:00:55]} 30. bxc5 {[%clk 0:00:28]}  Rc6 {[%clk 0:00:54]} 31. Nd2 {[%clk 0:00:20]}  Be7 {[%clk 0:00:50]} 32. Nb3 {[%clk 0:00:19]}  Bxh4 {[%clk 0:00:47]} 33. Rd1 {[%clk 0:00:17]}  Be7 {[%clk 0:00:42]} 34. Rd4 {[%clk 0:00:14]}  Rc7 {[%clk 0:00:36]} 35. Rc4 {[%clk 0:00:14]}  Rc6 {[%clk 0:00:26]} 36. a4 {[%clk 0:00:12]}  f5 {[%clk 0:00:21]} 37. f4 {[%clk 0:00:11]}  Kf6 {[%clk 0:00:21]} 38. Kf3 {[%clk 0:00:11]}  e5 {[%clk 0:00:18]} 39. fxe5+ {[%clk 0:00:10]}  Kxe5 {[%clk 0:00:19]} 40. Rc1 {[%clk 0:00:06]}  Kf6 {[%clk 0:00:18]} 41. Rc2 {[%clk 0:00:04]}  h6 {[%clk 0:00:17]} 42. a5 {[%clk 0:00:04]}  g5 {[%clk 0:00:17]} 43. Rc3 {[%clk 0:00:03]}  Kg6 {[%clk 0:00:17]} 44. Re3 {[%clk 0:00:03]}  g4+ {[%clk 0:00:16]} 45. Kf4 {[%clk 0:00:01]}  Bg5+ {[%clk 0:00:16]} 46. Ke5 {[%clk 0:00:02]}  Bxe3 {[%clk 0:00:17]} 47. Kd5 {[%clk 0:00:03]}  Rc8 {[%clk 0:00:15]} 48. c6 {[%clk 0:00:03]}  Kg5 {[%clk 0:00:15]} 49. Kd6 {[%clk 0:00:03]}  h5 {[%clk 0:00:14]} 50. Kd7 {[%clk 0:00:03]}  Rh8 {[%clk 0:00:14]} 51. c7 {[%clk 0:00:00]}  h4 {[%clk 0:00:13]} 0-1


[Site "https://www.chess.com"]